fUSD/lending_fUSD_20251211
["ID","MTS","AMOUNT","RATE_DAILY","PERIOD"]
[398255762,1765473039623,-153.0,0.00017973,2]
[398255763,1765473039632,-500.0,0.00017999,2]
[398255764,1765473039641,-500.0,0.00017999,2]
[398255765,1765473039651,-500.0,0.00017999,2]
[398255766,1765473039661,-500.0,0.00017999,2]
[398255767,1765473039670,-500.0,0.00017999,2]
[398255768,1765473039680,-500.0,0.00017999,2]
[398255769,1765473039689,-500.0,0.00017999,2]
[398255770,1765473039699,-198.34966232,0.00017999,2]
[398255772,1765473039708,-500.0,0.00017999,2]
[398255774,1765473039718,-2073.12623048,0.00017999,2]
[398255775,1765473039727,-3268.0,0.00018,2]
[398255777,1765473039736,-150.00000001,0.00018,2]
[398255778,1765473039745,-150.0,0.00018,2]
[398255779,1765473039755,-264.24246333,0.00018,2]
[398255780,1765473039763,-150.0,0.00018,2]
[398255781,1765473039773,-150.0,0.00018,2]
[398255782,1765473039783,-150.0,0.00018,2]
[398255783,1765473039793,-150.0,0.00018,2]
[398255784,1765473039802,-314155.84135457,0.00018,2]
[398255785,1765473039814,-128511.25944878,0.00018,2]
[398255786,1765473039825,-59520.42532327,0.00018,2]
[398255787,1765473039933,-500.0,0.00015599,2]
[398255788,1765473039942,-399.15851985,0.00015599,2]
[398255789,1765473039952,-166.40008286,0.00016438,2]
[398255790,1765473039965,-9561.1618122,0.00018,2]
[398255791,1765473039976,-985.71737054,0.00018,2]
[398255792,1765473039991,-448557.58530977,0.00018,2]
[398255793,1765473040004,-449.445,0.00018,2]
[398255794,1765473040028,-16152.73,0.00018,2]
[398255808,1765473042956,-345.5261616,0.00016741,2]
[398255809,1765473043114,-331.8895825,0.00016741,2]
[398255810,1765473043180,-3.98700519,0.00016741,2]
[398256032,1765473045733,-5836.59725071,0.00016741,2]
[398256033,1765473045743,-361.73967353,0.0001679,2]
[398256034,1765473045753,-87181.30327453,0.00018,2]
[398256035,1765473045786,-17003.70028845,0.00018,2]
[398256036,1765473045839,-410079.74914878,0.00018,2]
[398256064,1765473046263,-220460.41563073,0.00018,2]
[398256066,1765473046277,-291000.0,0.00018,2]
[398256069,1765473046289,-4486.92001529,0.00018,2]
[398263812,1765473430510,250.0,0.0001534,2]
[398263817,1765473640359,538.95,0.00024791,120]
[398263820,1765473687726,712.01,0.00013699,2]
[398263821,1765473696987,1514.397,0.00015288,2]
[398263836,1765473933165,171.0,6.8e-07,2]
[398263842,1765474104863,1590.296586,0.00015,2]
[398263845,1765474122862,5768.0220569,0.00015,2]
[398263855,1765474231986,-282.40564425,0.00015491,2]
[398263857,1765474231997,-250.0,0.00015529,2]
[398263858,1765474232008,-300.0,0.00015567,2]
[398263859,1765474232019,-1200.0,0.00015567,2]
[398263860,1765474232029,-300.0,0.00015567,2]
[398263861,1765474232040,-11076.39035722,0.00015568,2]
[398263862,1765474232050,-200.0,0.00015591,2]
[398263863,1765474232060,-200.0,0.00015591,2]
[398263864,1765474232071,-500.0,0.00015591,2]
[398263865,1765474232082,-300.0,0.00015599,2]
[398263866,1765474232092,-332.61043038,0.00015599,2]
[398263867,1765474232102,-500.0,0.00015599,2]
[398263868,1765474232112,-500.0,0.00015599,2]
[398263869,1765474232122,-500.0,0.00015599,2]
[398263870,1765474232132,-500.0,0.00015599,2]
[398263871,1765474232142,-500.0,0.00015599,2]
[398263872,1765474232157,-500.0,0.00015599,2]
[398263873,1765474232168,-336.8373025,0.00015599,2]
[398263874,1765474232178,-500.0,0.00015599,2]
[398263875,1765474232189,-500.0,0.00015599,2]
[398263876,1765474232200,-206.28137815,0.00015599,2]
[398263877,1765474232211,-500.0,0.00015599,2]
[398263878,1765474232222,-500.0,0.00015599,2]
[398263879,1765474232232,-500.0,0.00015599,2]
[398263880,1765474232243,-500.0,0.00015599,2]
[398263881,1765474232253,-500.0,0.00015599,2]
[398263882,1765474232264,-500.0,0.00015599,2]
[398263883,1765474232274,-500.0,0.00015599,2]
[398263885,1765474232286,-500.0,0.00015599,2]
[398263887,1765474232297,-500.0,0.00015599,2]
[398263889,1765474232307,-500.0,0.00015599,2]
[398263891,1765474232318,-500.0,0.00015599,2]
[398263892,1765474232328,-500.0,0.00015599,2]
[398263893,1765474232339,-500.0,0.00015599,2]
[398263894,1765474232350,-500.0,0.00015599,2]
[398263895,1765474232361,-500.0,0.00015599,2]
[398263896,1765474232371,-500.0,0.00015599,2]
[398263897,1765474232381,-500.0,0.00015599,2]
[398263898,1765474232393,-500.0,0.00015599,2]
[398263899,1765474232408,-500.0,0.00015599,2]
[398263900,1765474232418,-500.0,0.00015599,2]
[398263901,1765474232429,-500.0,0.00015599,2]
[398263903,1765474232439,-500.0,0.00015599,2]
[398263905,1765474232451,-500.0,0.00015599,2]
[398263907,1765474232462,-500.0,0.00015599,2]
[398263911,1765474232473,-500.0,0.00015599,2]
[398263914,1765474232483,-500.0,0.00015599,2]
[398263917,1765474232494,-500.0,0.00015599,2]
[398263920,1765474232504,-500.0,0.00015599,2]
[398263925,1765474232518,-500.0,0.00015599,2]
[398263927,1765474232528,-500.0,0.00015599,2]
[398263929,1765474232539,-500.0,0.00015599,2]
[398263931,1765474232549,-500.0,0.00015599,2]
[398263933,1765474232560,-500.0,0.00015599,2]
[398263935,1765474232570,-500.0,0.00015599,2]
[398263937,1765474232580,-456.28137815,0.00015599,2]
[398263939,1765474232591,-179.20187179,0.00015599,2]
[398263942,1765474232602,-500.0,0.00015599,2]
[398263944,1765474232613,-169.57377653,0.00015599,2]
[398263946,1765474232623,-500.0,0.00015599,2]
[398263948,1765474232633,-500.0,0.00015599,2]
[398263950,1765474232643,-500.0,0.00015599,2]
[398263952,1765474232653,-500.0,0.00015599,2]
[398263954,1765474232664,-500.0,0.00015599,2]
[398263957,1765474232674,-500.0,0.00015599,2]
[398263959,1765474232685,-500.0,0.00015599,2]
[398263960,1765474232695,-583.79502278,0.00015599,2]
[398263961,1765474232710,-295.54014195,0.00015668,2]
[398263962,1765474232721,-197.0267613,0.00015768,2]
[398263963,1765474232731,-11076.39035721,0.00015827,2]
[398263964,1765474232742,-8127.6605053,0.00016,4]
[398263965,1765474232753,-166.66,0.00016075,2]
[398263966,1765474232763,-200.0,0.0001608,2]
[398263967,1765474232774,-11076.39035721,0.00016086,2]
[398263968,1765474232784,-22402.19859534,0.00016169,2]
[398263969,1765474233160,-8485.31140466,0.00016169,2]
[398263970,1765474233170,-150.0,0.00016176,2]
[398263971,1765474233180,-150.0,0.000162,2]
[398263972,1765474233189,-8016.08859535,0.000162,5]
[398263973,1765474233206,-681.03338935,0.000162,5]
[398263974,1765474233218,-2690.95070822,0.000162,5]
[398263975,1765474233229,-25290.0,0.000162,5]
[398263976,1765474233241,-1460.45530618,0.000162,5]
[398263977,1765474233252,-717.99160486,0.000162,5]
[398263981,1765474237948,-436.85226899,0.000162,5]
[398263982,1765474238001,-300.0,0.000162,5]
[398263983,1765474238163,-35997.92558996,0.000162,5]
[398263984,1765474238173,-11076.39035721,0.00016345,2]
[398263985,1765474238182,-435.48630165,0.00016356,2]
[398263986,1765474238193,-208.01,0.00016358,2]
[398263987,1765474238203,-2751.0,0.00016403,2]
[398263988,1765474238213,-166.66,0.00016414,2]
[398263989,1765474238223,-500.0,0.00016438,2]
[398263990,1765474238233,-538.95,0.00016527,2]
[398263991,1765474238243,-703.56,0.00016541,2]
[398263992,1765474238253,-11076.39035721,0.00016604,2]
[398263993,1765474238263,-300.0,0.00016724,2]
[398263994,1765474238273,-166.66,0.00016752,2]
[398263995,1765474238283,-4448.94995073,0.00016864,2]
[398263996,1765474238296,-6627.44040648,0.00016864,2]
[398263997,1765474238526,-2000.0,0.00017,2]
[398263998,1765474238536,-500.0,0.00017,2]
[398263999,1765474238547,-27979.36580811,0.00017,2]
[398264000,1765474238557,-250.0,0.00017,2]
[398264001,1765474238567,-684.0,0.00017007,2]
[398264002,1765474238578,-1260.0,0.00017007,2]
[398264003,1765474238587,-1196.0,0.00017007,2]
[398264004,1765474238598,-910.0,0.00017007,2]
[398264005,1765474238608,-253.0,0.00017007,2]
[398264006,1765474238618,-611.0,0.00017007,2]
[398264007,1765474238628,-1324.0,0.00017007,2]
[398264008,1765474238638,-420.0,0.00017027,2]
[398264009,1765474238649,-420.0,0.00017027,2]
[398264010,1765474238659,-250.0,0.0001704,2]
[398264011,1765474238669,-250.0,0.00017049,2]
[398264012,1765474238679,-195.0,0.00017049,2]
[398264013,1765474238690,-166.66,0.00017091,2]
[398264014,1765474238700,-150.0,0.000171,2]
[398264015,1765474238709,-1549.0,0.00017113,2]
[398264016,1765474238719,-11076.39035721,0.00017123,2]
[398264017,1765474238729,-1406.67,0.00017123,2]
[398264018,1765474238739,-703.56,0.00017123,2]
[398264019,1765474238750,-703.56,0.00017123,2]
[398264020,1765474238760,-480.43,0.00017123,2]
[398264021,1765474238770,-960.4,0.00017123,2]
[398264022,1765474238780,-480.43,0.00017123,2]
[398264023,1765474238790,-480.43,0.00017123,2]
[398264024,1765474238800,-480.43,0.00017123,2]
[398264025,1765474238810,-480.43,0.00017123,2]
[398264026,1765474238819,-960.12,0.00017123,2]
[398264027,1765474238829,-480.43,0.00017123,2]
[398264028,1765474238840,-300.0,0.00017158,2]
[398264029,1765474238849,-1542.0,0.00017285,2]
[398264030,1765474238860,-865.12145628,0.00017382,2]
[398264031,1765474238872,-10211.26890093,0.00017382,2]
[398264032,1765474238882,-166.66,0.00017429,2]
[398264033,1765474238891,-703.56,0.000175,2]
[398264034,1765474238901,-371.80167845,0.0001764,2]
[398264035,1765474238911,-11076.39035721,0.00017641,2]
[398264036,1765474238921,-166.66,0.00017768,2]
[398264037,1765474238931,-200.0,0.00017816,2]
[398264038,1765474238941,-3092.09309159,0.0001788,2]
[398264039,1765474238951,-1000.0,0.00017898,3]
[398264040,1765474238961,-1000.0,0.00017899,3]
[398264041,1765474238970,-10000.0,0.000179,2]
[398264042,1765474238981,-2382.68792387,0.000179,2]
[398264043,1765474238991,-2278.89039014,0.000179,2]
[398264044,1765474239001,-11076.39035721,0.000179,2]
[398264045,1765474239012,-314.98163074,0.000179,2]
[398264046,1765474239022,-599.3376997,0.000179,2]
[398264047,1765474239033,-249.51980384,0.000179,2]
[398264048,1765474239043,-219.6430445,0.000179,2]
[398264049,1765474239054,-11716.87926764,0.000179,2]
[398264050,1765474239063,-1000.0,0.00017913,2]
[398264051,1765474239074,-150.0,0.00017945,2]
[398264052,1765474239084,-150.0,0.00017945,2]
[398264053,1765474239094,-152.0,0.00017973,2]
[398264054,1765474239104,-152.0,0.00017973,2]
[398264055,1765474239114,-152.0,0.00017973,2]
[398264056,1765474239124,-233.3764448,0.00017973,2]
[398264057,1765474239133,-152.0,0.00017973,2]
[398264058,1765474239143,-153.0,0.00017973,2]
[398264059,1765474239153,-153.0,0.00017973,2]
[398264060,1765474239163,-153.0,0.00017973,2]
[398264061,1765474239172,-212.60063327,0.00017973,2]
[398264062,1765474239182,-152.0,0.0001798,2]
[398264063,1765474239192,-153.0,0.0001798,2]
[398264064,1765474239202,-152.0,0.0001798,2]
[398264065,1765474239212,-153.0,0.0001798,2]
[398264066,1765474239221,-153.0,0.0001798,2]
[398264067,1765474239231,-152.0,0.0001798,2]
[398264068,1765474239241,-153.0,0.0001798,2]
[398264069,1765474239251,-152.0,0.0001798,2]
[398264070,1765474239260,-152.0,0.0001798,2]
[398264071,1765474239271,-152.0,0.0001798,2]
[398264072,1765474239281,-152.0,0.0001798,2]
[398264073,1765474239292,-152.0,0.0001798,2]
[398264074,1765474239301,-152.0,0.0001798,2]
[398264075,1765474239311,-152.0,0.0001798,2]
[398264076,1765474239320,-152.0,0.0001798,2]
[398264077,1765474239330,-152.0,0.0001798,2]
[398264078,1765474239339,-152.0,0.0001798,2]
[398264079,1765474239349,-153.0,0.0001798,2]
[398264080,1765474239359,-153.0,0.0001798,2]
[398264081,1765474239369,-152.0,0.0001798,2]
[398264082,1765474239379,-152.0,0.0001798,2]
[398264083,1765474239389,-152.0,0.0001798,2]
[398264084,1765474239404,-152.0,0.0001798,2]
[398264085,1765474239414,-152.0,0.0001798,2]
[398264086,1765474239423,-152.0,0.0001798,2]
[398264087,1765474239432,-152.0,0.0001798,2]
[398264088,1765474239444,-153.0,0.0001798,2]
[398264089,1765474239453,-153.0,0.0001798,2]
[398264090,1765474239463,-153.0,0.0001798,2]
[398264091,1765474239472,-532.0,0.0001798,2]
[398264092,1765474239482,-250.0,0.0001798,2]
[398264093,1765474239492,-150.0,0.0001798,2]
[398264094,1765474239502,-12536.8937519,0.00017995,2]
[398264095,1765474239511,-1000.0,0.00017999,2]
[398264096,1765474239521,-3375.0,0.00018,2]
[398264097,1765474239532,-187.07956536,0.00018,2]
[398264098,1765474239543,-21785.26386165,0.00018,2]
[398264099,1765474239555,-29238.68511849,0.00018,2]
[398264104,1765474240007,-359.5630984,0.000179,2]
[398264105,1765474240017,-4987.2034315,0.00018,2]
[398264106,1765474240061,-764.0,0.00018,2]
[398264107,1765474240433,-761.1,0.00018,2]
[398264108,1765474240446,-645.89617358,0.00018,2]
[398264109,1765474240458,-450.845,0.00018,2]
[398264110,1765474240470,-261.38197667,0.00018,2]
[398264111,1765474240482,-5531.86345105,0.00018,2]
[398264128,1765474243654,-1622.07230364,0.00017007,2]
[398264129,1765474243665,-841.0,0.00017007,2]
[398264130,1765474243767,-2300.92769636,0.00017007,2]
[398264131,1765474243777,-1550.87914631,0.00018,2]
[398264132,1765474243824,-355.434006,0.00018,2]
[398264133,1765474243835,-6561.4500775,0.00018,2]
[398264134,1765474243881,-641.9831355,0.00018,2]
[398264135,1765474243892,-2453.78194772,0.00018,2]
[398264150,1765474245975,-16276.39194464,0.00018,2]
[398264151,1765474245987,-1269.25195025,0.00018,2]
[398264152,1765474245999,-507.2309045,0.00018,2]
[398264153,1765474246010,-29412.1117943,0.00018,2]
[398264154,1765474246022,-49479.08554831,0.00018,2]
[398264155,1765474246032,-272394.20783319,0.00018,2]
[398264156,1765474246041,-265509.34321004,0.00018,2]
[398264157,1765474246054,-972.51393802,0.00018,2]
[398264158,1765474246065,-4851.58305577,0.00018,2]
[398264159,1765474246077,-4156.60337562,0.00018,2]
[398264160,1765474246089,-11868.40951728,0.00018,2]
[398264161,1765474246195,-1688.54009619,0.00018,2]
[398264162,1765474246207,-4712.0,0.00018,2]
[398264163,1765474246236,-74083.86096767,0.00018,2]
[398264164,1765474246249,-904.64662748,0.00018,2]
[398264165,1765474246263,-52635.06634749,0.00018,2]
[398264186,1765474382605,250.0,0.0001534,2]
[398264196,1765474452735,158.44,0.00013886,2]
[398264212,1765475013668,500.0,0.00015,5]
[398264213,1765475026768,347.64842674,0.00015,4]
[398264215,1765475103205,500.0,0.00015344,4]
[398264217,1765475136053,500.0,0.00015344,3]
[398264219,1765475184583,214.60293036,0.00015344,3]
[398264220,1765475184607,85.39706964,0.00015344,3]
[398264223,1765475320467,284.0,0.00015344,2]
[398264224,1765475342560,250.0,0.0001534,2]
[398264232,1765475432100,-609.67599965,0.00015599,2]
[398264233,1765475432110,-219.38471759,0.000161,2]
[398264234,1765475432121,-6412.3,0.00016199,2]
[398264235,1765475432131,-300.0,0.00016199,2]
[398264236,1765475432142,-300.0,0.00016199,2]
[398264237,1765475432152,-150.0,0.000162,2]
[398264238,1765475432161,-150.0,0.000162,2]
[398264239,1765475432172,-150.0,0.000162,2]
[398264240,1765475432182,-150.0,0.000162,2]
[398264241,1765475432192,-150.0,0.000162,2]
[398264242,1765475432203,-150.0,0.000162,2]
[398264243,1765475432214,-150.0,0.000162,2]
[398264244,1765475432224,-158.44,0.00016201,2]
[398264245,1765475432234,-4381.44796845,0.00016438,2]
[398264246,1765475432247,-1996.02916495,0.00016438,2]
[398264247,1765475432259,-252.5928666,0.00016438,2]
[398264248,1765475432269,-500.0,0.00016548,2]
[398264249,1765475432279,-419.58526613,0.00016705,2]
[398264250,1765475432292,-398.85473387,0.00016705,2]
[398264251,1765475432302,-110.47792846,0.000168,3]
[398264252,1765475432318,-888.52207154,0.000168,3]
[398264253,1765475432327,-302.79472894,0.00016852,2]
[398264254,1765475432337,-250.0,0.00016869,2]
[398264255,1765475432347,-1532.0,0.00016986,2]
[398264256,1765475432357,-300.0,0.00016995,2]
[398264258,1765475432366,-2000.0,0.00017,2]
[398264259,1765475432376,-182.9,0.00017016,2]
[398264261,1765475432385,-480.43,0.00017041,2]
[398264263,1765475432395,-400.0,0.00017095,2]
[398264264,1765475432404,-500.0,0.00017096,2]
[398264265,1765475432413,-500.0,0.00017096,2]
[398264266,1765475432422,-500.0,0.00017096,2]
[398264267,1765475432432,-500.0,0.00017096,2]
[398264268,1765475432442,-500.0,0.00017096,2]
[398264270,1765475432451,-500.0,0.00017096,2]
[398264272,1765475432461,-500.0,0.00017096,2]
[398264274,1765475432471,-500.0,0.00017096,2]
[398264275,1765475432480,-500.0,0.00017096,2]
[398264276,1765475432490,-500.0,0.00017096,2]
[398264277,1765475432501,-500.0,0.00017096,2]
[398264278,1765475432511,-150.0,0.000171,2]
[398264279,1765475432521,-150.0,0.000171,2]
[398264280,1765475432531,-701.2499022,0.00017107,2]
[398264281,1765475432544,-904.7500978,0.00017107,2]
[398264282,1765475432553,-1324.0,0.00017107,2]
[398264283,1765475432563,-611.0,0.00017107,2]
[398264284,1765475432572,-3449.0,0.00017107,2]
[398264285,1765475432581,-684.0,0.00017107,2]
[398264286,1765475432591,-1260.0,0.00017107,2]
[398264287,1765475432600,-1179.7499022,0.00017107,2]
[398264288,1765475432623,-16.2500978,0.00017107,2]
[398264289,1765475432632,-310.38229047,0.00017107,2]
[398264290,1765475432644,-599.61770953,0.00017107,2]
[398264291,1765475432653,-213.13734342,0.00017107,2]
[398264292,1765475432664,-349.86265658,0.00017107,2]
[398264293,1765475432673,-478.39,0.00017123,2]
[398264294,1765475432682,-219.13459358,0.00017123,2]
[398264322,1765475438147,-328.93344363,0.00016099,2]
[398264323,1765475438157,-4764.0,0.00017107,2]
[398264324,1765475438168,-261.29540642,0.00017123,2]
[398264325,1765475438178,-480.43,0.00017123,2]
[398264326,1765475438188,-480.43,0.00017123,2]
[398264327,1765475438199,-480.43,0.00017123,2]
[398264328,1765475438209,-480.43,0.00017123,2]
[398264329,1765475438219,-480.43,0.00017123,2]
[398264330,1765475438228,-960.75,0.00017123,2]
[398264331,1765475438238,-480.43,0.00017123,2]
[398264332,1765475438248,-500.0,0.00017123,2]
[398264333,1765475438258,-480.43,0.00017141,2]
[398264334,1765475438268,-250.0,0.00017159,2]
[398264335,1765475438278,-200.0,0.00017159,2]
[398264336,1765475438287,-250.0,0.00017159,2]
[398264337,1765475438298,-168.23,0.00017189,2]
[398264338,1765475438308,-480.43,0.000172,2]
[398264339,1765475438319,-150.0,0.0001726,2]
[398264340,1765475438329,-150.0,0.0001726,2]
[398264341,1765475438339,-300.33,0.0001726,2]
[398264342,1765475438349,-927.5,0.0001726,2]
[398264343,1765475438359,-150.0,0.0001726,2]
[398264344,1765475438370,-150.0,0.0001726,2]
[398264345,1765475438381,-463.81,0.0001726,2]
[398264346,1765475438391,-150.0,0.0001726,2]
[398264347,1765475438400,-150.0,0.0001726,2]
[398264348,1765475438410,-150.0,0.0001726,2]
[398264350,1765475438420,-150.0,0.0001726,2]
[398264352,1765475438430,-463.81,0.0001726,2]
[398264353,1765475438440,-150.0,0.0001726,2]
[398264354,1765475438450,-150.0,0.0001726,2]
[398264355,1765475438460,-150.0,0.0001726,2]
[398264356,1765475438469,-463.81,0.0001726,2]
[398264357,1765475438480,-3317.44,0.00017296,2]
[398264358,1765475438489,-480.43,0.000173,2]
[398264359,1765475438499,-500.0,0.00017397,2]
[398264360,1765475438509,-170.25,0.0001754,2]
[398264361,1765475438518,-1625.549,0.00017546,2]
[398264363,1765475438528,-247.86778564,0.0001764,2]
[398264365,1765475438537,-500.0,0.00017699,2]
[398264367,1765475438547,-500.0,0.00017699,2]
[398264369,1765475438556,-500.0,0.00017699,2]
[398264371,1765475438565,-500.0,0.00017699,2]
[398264373,1765475438574,-500.0,0.00017699,2]
[398264375,1765475438584,-500.0,0.00017699,2]
[398264377,1765475438593,-376.26197545,0.00017699,2]
[398264379,1765475438603,-480.43,0.000177,2]
[398264381,1765475438613,-480.43,0.000177,2]
[398264383,1765475438622,-480.43,0.000177,2]
[398264385,1765475438632,-1892.0,0.000177,2]
[398264386,1765475438642,-420.0,0.00017707,2]
[398264387,1765475438652,-420.0,0.00017707,2]
[398264388,1765475438661,-226.8361853,0.000178,2]
[398264389,1765475438671,-235.6169,0.000178,2]
[398264390,1765475438680,-281.2726,0.000178,2]
[398264391,1765475438690,-1000.0,0.000178,2]
[398264392,1765475438699,-411.29331562,0.000178,2]
[398264393,1765475438710,-3711.21755698,0.000178,2]
[398264394,1765475438720,-411.29331562,0.0001785,2]
[398264395,1765475438729,-200.0,0.00017856,2]
[398264396,1765475438739,-256.9452444,0.00017899,2]
[398264397,1765475438749,-500.0,0.00017899,2]
[398264398,1765475438759,-232.53373121,0.00017899,2]
[398264399,1765475438769,-201.52894483,0.00017899,2]
[398264400,1765475438779,-500.0,0.00017899,2]
[398264401,1765475438789,-1075.92634884,0.00017899,5]
[398264402,1765475438800,-1079.22650497,0.00017899,5]
[398264403,1765475438810,-369.54716112,0.000179,2]
[398264404,1765475438821,-6753.33456925,0.000179,2]
[398264405,1765475438833,-490.29531354,0.000179,2]
[398264406,1765475438854,-541.83801721,0.000179,2]
[398264407,1765475438864,-1169.4619,0.000179,2]
[398264408,1765475438874,-3401.19639203,0.000179,2]
[398264409,1765475438887,-455.92385307,0.000179,2]
[398264410,1765475438902,-6256.36404,0.000179,2]
[398264411,1765475438915,-103764.20503512,0.000179,2]
[398264417,1765475440190,-450.655,0.000179,2]
[398264418,1765475440202,-403.8167,0.000179,2]
[398264419,1765475440213,-3280.84999999,0.000179,2]
[398264420,1765475440226,-17845.8268315,0.000179,2]
[398264421,1765475440297,-11903.46116413,0.000179,2]
[398264422,1765475440319,-88385.44996153,0.000179,2]
[398264424,1765475440560,-907.96447581,0.000179,2]
[398264478,1765475443932,-253.0,0.00017107,2]
[398264479,1765475443943,-212.08686962,0.000179,2]
[398264480,1765475444715,-335663.91435944,0.000179,2]
[398264487,1765475446136,-480.43,0.000178,2]
[398264488,1765475446146,-15902.11989279,0.000179,2]
[398264489,1765475446187,-1140.10406863,0.000179,2]
[398264490,1765475446203,-503.26943875,0.000179,2]
[398264491,1765475446215,-10264.48088164,0.000179,2]
[398264492,1765475446243,-4475.0079439,0.000179,2]
[398264493,1765475446298,-6652.16,0.000179,2]
[398264494,1765475446456,-502.39505563,0.000179,2]
[398264495,1765475446468,-2074.74606667,0.000179,2]
[398264496,1765475446480,-1006.60201967,0.000179,2]
[398264497,1765475446492,-4454.46325526,0.000179,2]
[398264534,1765476309185,250.0,0.0001534,2]
[398264551,1765476632265,-166.66,0.00016053,2]
[398264552,1765476632277,-158.32920754,0.00016199,2]
[398264553,1765476632289,-806.80112719,0.00016199,2]
[398264554,1765476632302,-234.86966527,0.00016199,2]
[398264555,1765476632315,-150.0,0.000162,2]
[398264556,1765476632325,-150.0,0.000162,2]
[398264557,1765476632335,-150.0,0.000162,2]
[398264558,1765476632345,-150.0,0.000162,2]
[398264559,1765476632356,-150.0,0.000162,2]
[398264560,1765476632366,-152.18264083,0.000162,2]
[398264561,1765476632376,-150.0,0.000162,2]
[398264562,1765476632386,-150.0,0.000162,2]
[398264563,1765476632396,-166.66,0.00016391,2]
[398264564,1765476632406,-300.0,0.00016728,2]
[398264565,1765476632416,-166.66,0.00016729,2]
[398264566,1765476632426,-500.0,0.000169,2]
[398264567,1765476632436,-2125.2108,0.000169,2]
[398264568,1765476632446,-1000.0,0.0001696,2]
[398264569,1765476632456,-2000.0,0.00017,2]
[398264570,1765476632466,-250.0,0.00017,2]
[398264571,1765476632476,-703.56,0.00017,2]
[398264573,1765476632486,-200.0,0.00017054,2]
[398264574,1765476632496,-910.0,0.00017056,2]
[398264575,1765476632506,-1196.0,0.00017056,2]
[398264576,1765476632516,-253.0,0.00017056,2]
[398264577,1765476632526,-183.80710998,0.00017056,2]
[398264580,1765476632545,-379.19289002,0.00017056,2]
[398264582,1765476632555,-166.66,0.00017066,2]
[398264584,1765476632564,-150.0,0.00017078,2]
[398264586,1765476632574,-150.0,0.00017078,2]
[398264588,1765476632584,-396.96861409,0.000171,2]
[398264590,1765476632596,-1529.05325144,0.000171,2]
[398264592,1765476632608,-2877.40482872,0.000171,2]
[398264594,1765476632618,-176.632,0.00017107,2]
[398264597,1765476632628,-150.0,0.00017107,2]
[398264599,1765476632638,-1042.55984574,0.00017107,2]
[398264649,1765476638542,-4764.0,0.00017056,2]
[398264650,1765476638552,-281.44015426,0.00017107,2]
[398264651,1765476638562,-1606.0,0.00017107,2]
[398264652,1765476638571,-611.0,0.00017107,2]
[398264653,1765476638582,-3449.0,0.00017107,2]
[398264654,1765476638592,-684.0,0.00017107,2]
[398264655,1765476638601,-1260.0,0.00017107,2]
[398264656,1765476638612,-992.69,0.00017116,2]
[398264657,1765476638622,-3555.48,0.00017122,2]
[398264658,1765476638631,-960.39,0.00017141,2]
[398264659,1765476638641,-150.0,0.00017178,2]
[398264660,1765476638650,-150.0,0.00017178,2]
[398264661,1765476638659,-150.0,0.00017178,2]
[398264662,1765476638669,-463.81,0.0001726,2]
[398264663,1765476638678,-394.76,0.0001726,2]
[398264664,1765476638689,-463.81,0.0001726,2]